bitfinex/quotes_BTCUSD_20250607
["timestamp","ask_amount","ask_price","bid_price","bid_amount"]
[1749331161593,0.02091887,105930.0,105920.0,0.5063802]
[1749331161804,0.04804625,105930.0,105920.0,0.5063802]
[1749331162017,0.04804626,105930.0,105920.0,0.5063802]
[1749331162233,0.03979836,105930.0,105920.0,0.5063802]
[1749331162454,0.04804608,105930.0,105920.0,0.5063802]
[1749331163509,0.04804614,105930.0,105920.0,0.5063802]
[1749331163923,0.03035853,105930.0,105920.0,0.5063802]
[1749331164267,0.04804615,105930.0,105920.0,0.5063802]
[1749331164469,0.04804608,105930.0,105920.0,0.5063802]
[1749331164648,0.04804616,105930.0,105920.0,0.5063802]
[1749331164857,0.04804613,105930.0,105920.0,0.5063802]
[1749331165248,0.04804597,105930.0,105920.0,0.5063802]
[1749331165477,0.03035853,105930.0,105920.0,0.5063802]
[1749331165674,0.04804608,105930.0,105920.0,0.5063802]
[1749331165827,0.04804612,105930.0,105920.0,0.5063802]
[1749331166072,0.04804614,105930.0,105920.0,0.5063802]
[1749331166911,0.04804615,105930.0,105920.0,0.5063802]
[1749331167206,0.04804614,105930.0,105920.0,0.5063802]
[1749331167585,0.0480464,105930.0,105920.0,0.5063802]
[1749331168175,0.05748615,105930.0,105920.0,0.5063802]
[1749331168384,0.05748614,105930.0,105920.0,0.5063802]
[1749331168784,0.03979828,105930.0,105920.0,0.5063802]
[1749331168988,0.05748613,105930.0,105920.0,0.5063802]
[1749331169187,0.03979828,105930.0,105920.0,0.5063802]
[1749331169388,0.05748613,105930.0,105920.0,0.5063802]
[1749331169588,0.04804638,105930.0,105920.0,0.5063802]
[1749331170252,0.03035853,105930.0,105920.0,0.5063802]
[1749331170462,0.04804674,105930.0,105920.0,0.5063802]
[1749331170798,0.03035853,105930.0,105920.0,0.5063802]
[1749331171000,0.04804686,105930.0,105920.0,0.5063802]
[1749331171209,0.03035853,105930.0,105920.0,0.5063802]
[1749331171418,0.04804688,105930.0,105920.0,0.5063802]
[1749331172515,0.03035853,105930.0,105920.0,0.5063802]
[1749331172860,0.04804734,105930.0,105920.0,0.5063802]
[1749331173045,0.04804733,105930.0,105920.0,0.5063802]
[1749331173724,0.04804806,105930.0,105920.0,0.5063802]
[1749331174612,0.04804804,105930.0,105920.0,0.5063802]
[1749331175044,0.03979836,105930.0,105920.0,0.5063802]
[1749331175270,0.05748779,105930.0,105920.0,0.5063802]
[1749331175941,0.05748911,105930.0,105920.0,0.5063802]
[1749331176160,0.03035853,105930.0,105920.0,0.5063802]
[1749331176648,0.04804918,105930.0,105920.0,0.5063802]
[1749331176859,0.05748901,105930.0,105920.0,0.5063802]
[1749331177293,0.04805213,105930.0,105920.0,0.5063802]
[1749331177511,0.05749196,105930.0,105920.0,0.5063802]
[1749331178616,0.05749194,105930.0,105920.0,0.5063802]
[1749331179508,0.05749197,105930.0,105920.0,0.5063802]
[1749331179746,0.06693198,105930.0,105920.0,0.5063802]
[1749331181102,0.06693199,105930.0,105920.0,0.5063802]
[1749331181312,0.04923837,105930.0,105920.0,0.5063802]
[1749331181791,0.06693194,105930.0,105920.0,0.5063802]
[1749331182055,0.06693185,105930.0,105920.0,0.5063802]
[1749331182729,0.06693176,105930.0,105920.0,0.5063802]
[1749331184127,0.06693121,105930.0,105920.0,0.5063802]
[1749331184336,0.06693127,105930.0,105920.0,0.5063802]
[1749331184546,0.06693126,105930.0,105920.0,0.5063802]
[1749331184760,0.04923828,105930.0,105920.0,0.5063802]
[1749331184922,0.06693129,105930.0,105920.0,0.5063802]
[1749331186146,0.04923828,105930.0,105920.0,0.5063802]
[1749331186553,0.06693108,105930.0,105920.0,0.5063802]
[1749331186747,0.0669317,105930.0,105920.0,0.5063802]
[1749331186952,0.05749169,105930.0,105920.0,0.5063802]
[1749331187199,0.0574917,105930.0,105920.0,0.5063802]
[1749331187402,0.05749171,105930.0,105920.0,0.5063802]
[1749331187813,0.06693172,105930.0,105920.0,0.5063802]
[1749331188030,0.06693168,105930.0,105920.0,0.5063802]
[1749331189396,0.0492389,105930.0,105920.0,0.5063802]
[1749331189599,0.06693146,105930.0,105920.0,0.5063802]
[1749331193091,0.05749154,105930.0,105920.0,0.5214802]
[1749331195098,0.03979898,105930.0,105920.0,0.5214802]
[1749331195301,0.05749138,105930.0,105920.0,0.5214802]
[1749331196255,0.0574914,105930.0,105920.0,0.5214802]
[1749331197269,0.05749142,105930.0,105920.0,0.5214802]
[1749331197712,0.05749141,105930.0,105920.0,0.5214802]
[1749331198136,0.05749143,105930.0,105920.0,0.5214802]
[1749331198310,0.05744134,105930.0,105920.0,0.5214802]
[1749331199562,0.04800133,105930.0,105920.0,0.5214802]
[1749331199921,0.04800137,105930.0,105920.0,0.5214802]
[1749331200324,0.03856157,105930.0,105920.0,0.5214802]
[1749331200490,0.04800149,105930.0,105920.0,0.5214802]
[1749331200910,0.0480014,105930.0,105920.0,0.5214802]
[1749331201163,0.04800144,105930.0,105920.0,0.5214802]
[1749331202779,0.03030888,105930.0,105920.0,0.5214802]
[1749331203027,0.04800147,105930.0,105920.0,0.5214802]
[1749331203637,0.04800147,105930.0,105920.0,0.5063802]
[1749331204228,0.04800147,105930.0,105920.0,0.54401976]
[1749331204439,0.04800294,105930.0,105920.0,0.5063802]
[1749331204642,0.05744295,105930.0,105920.0,0.5063802]
[1749331206917,0.05743968,105930.0,105920.0,0.5063802]
[1749331208194,0.05743961,105930.0,105920.0,0.5063802]
[1749331208868,0.0574394,105930.0,105920.0,0.5063802]
[1749331209939,0.03974889,105930.0,105920.0,0.5063802]
[1749331210180,0.05743995,105930.0,105920.0,0.5063802]
[1749331210412,0.06688005,105930.0,105920.0,0.5063802]
[1749331210887,0.06688037,105930.0,105920.0,0.5063802]
[1749331212045,0.0668802,105930.0,105920.0,0.5215802]
[1749331212505,0.06688023,105930.0,105920.0,0.5215802]
[1749331214821,0.06688039,105930.0,105920.0,0.5215802]
[1749331215043,0.0668804,105930.0,105920.0,0.5215802]
[1749331215253,0.0574403,105930.0,105920.0,0.5215802]
[1749331216588,0.05744018,105930.0,105920.0,0.5215802]
[1749331217078,0.03974889,105930.0,105920.0,0.5215802]
[1749331217337,0.05744018,105930.0,105920.0,0.5215802]
[1749331217989,0.05744032,105930.0,105920.0,0.5215802]
[1749331218278,0.06688024,105930.0,105920.0,0.5215802]
[1749331218486,0.0668802,105930.0,105920.0,0.5215802]
[1749331219141,0.06688012,105930.0,105920.0,0.5215802]
[1749331219361,0.06688009,105930.0,105920.0,0.5215802]
[1749331219586,0.06688023,105930.0,105920.0,0.5215802]
[1749331219801,0.05744022,105930.0,105920.0,0.5215802]
[1749331220456,0.05744027,105930.0,105920.0,0.5215802]
[1749331221310,0.05744026,105930.0,105920.0,0.5215802]
[1749331221518,0.05744039,105930.0,105920.0,0.5215802]
[1749331221952,0.0397488,105930.0,105920.0,0.5215802]
[1749331222198,0.05744033,105930.0,105920.0,0.5215802]
[1749331222632,0.04918881,105930.0,105920.0,0.5215802]
[1749331222849,0.06688034,105930.0,105920.0,0.5215802]
[1749331223492,0.06688045,105930.0,105920.0,0.5215802]
[1749331223914,0.06688046,105930.0,105920.0,0.5215802]
[1749331224119,0.05744045,105930.0,105920.0,0.5215802]
[1749331224354,0.0397488,105930.0,105920.0,0.5215802]
[1749331224567,0.05744045,105930.0,105920.0,0.5215802]
[1749331225804,0.05744062,105930.0,105920.0,0.5215802]
[1749331226008,0.03030888,105930.0,105920.0,0.5215802]
[1749331226230,0.04800072,105930.0,105920.0,0.5215802]
[1749331226434,0.04800071,105930.0,105920.0,0.5215802]
[1749331227319,0.05744072,105930.0,105920.0,0.5215802]
[1749331227538,0.05744068,105930.0,105920.0,0.5215802]
[1749331227959,0.03974889,105930.0,105920.0,0.5215802]
[1749331228168,0.05744068,105930.0,105920.0,0.5215802]
[1749331228802,0.05744081,105930.0,105920.0,0.5215802]
[1749331229447,0.05744078,105930.0,105920.0,0.5215802]
[1749331229865,0.03974889,105930.0,105920.0,0.5215802]
[1749331230069,0.05744079,105930.0,105920.0,0.5215802]
[1749331230476,0.05744094,105930.0,105920.0,0.5215802]
[1749331231086,0.05744091,105930.0,105920.0,0.5215802]
[1749331231292,0.05744092,105930.0,105920.0,0.5215802]
[1749331232747,0.03974889,105930.0,105920.0,0.5215802]
[1749331232912,0.05744116,105930.0,105920.0,0.5215802]
[1749331233121,0.05744115,105930.0,105920.0,0.5215802]
[1749331234702,0.05744415,105930.0,105920.0,0.5215802]
[1749331235942,0.03974889,105930.0,105920.0,0.5215802]
[1749331236246,0.04800417,105930.0,105920.0,0.5215802]
[1749331236410,0.05744425,105930.0,105920.0,0.5215802]
[1749331237005,0.04800424,105930.0,105920.0,0.1463002]
[1749331237212,0.05744425,105930.0,105920.0,0.54796009]
[1749331237447,0.03974889,105930.0,105920.0,0.54796009]
[1749331237666,0.05744427,105930.0,105920.0,0.54796009]
[1749331240246,0.05744428,105930.0,105920.0,0.54796009]
[1749331240563,0.05744429,105930.0,105920.0,0.54796009]
[1749331241165,0.06688421,105930.0,105920.0,0.54796009]
[1749331241375,0.04918881,105930.0,105920.0,0.54796009]
[1749331241603,0.0668842,105930.0,105920.0,0.54796009]
[1749331242019,0.06688421,105930.0,105920.0,0.54796009]
[1749331242914,0.06688423,105930.0,105920.0,0.54796009]
[1749331243119,0.04918881,105930.0,105920.0,0.54796009]
[1749331243327,0.06688423,105930.0,105920.0,0.54796009]
[1749331243530,0.05744431,105930.0,105920.0,0.54796009]
[1749331244451,0.03974889,105930.0,105920.0,0.54796009]
[1749331244655,0.05744432,105930.0,105920.0,0.54796009]
[1749331245208,0.05744433,105930.0,105920.0,0.54796018]
[1749331245818,0.05744432,105930.0,105920.0,0.54796018]
[1749331247018,0.05744433,105930.0,105920.0,0.54796018]
[1749331247631,0.05744424,105930.0,105920.0,0.54796018]
[1749331247807,0.05744426,105930.0,105920.0,0.54796018]
[1749331248011,0.05744425,105930.0,105920.0,0.54796018]
[1749331249203,0.0574443,105930.0,105920.0,0.54796018]
[1749331249419,0.05744429,105930.0,105920.0,0.54796018]
[1749331249635,0.0574443,105930.0,105920.0,0.54796018]
[1749331250670,0.05744431,105930.0,105920.0,0.54796032]
[1749331251058,0.0480043,105930.0,105920.0,0.54796032]
[1749331251304,0.05744431,105930.0,105920.0,0.54796032]
[1749331252063,0.05744432,105930.0,105920.0,0.54796032]
[1749331253281,0.05744354,105930.0,105920.0,0.54796032]
[1749331253709,0.05744351,105930.0,105920.0,0.54796032]
[1749331254772,0.05744344,105930.0,105920.0,0.54796032]
[1749331255170,0.06688345,105930.0,105920.0,0.54796032]
[1749331255672,0.06688346,105930.0,105920.0,0.54796032]
[1749331257104,0.05744346,105930.0,105920.0,0.54796032]
[1749331257464,0.0574435,105930.0,105920.0,0.54796032]
[1749331258878,0.05744307,105930.0,105920.0,0.54796032]
[1749331260267,0.05744305,105930.0,105920.0,0.54796032]
[1749331260477,0.04800313,105930.0,105920.0,0.54796032]
[1749331260678,0.05744314,105930.0,105920.0,0.54796032]
[1749331261643,0.05744298,105930.0,105920.0,0.54796032]
[1749331262063,0.03856314,105930.0,105920.0,1.16429478]
[1749331262292,0.02086905,105930.0,105920.0,1.16429478]
[1749331262499,0.03856312,105930.0,105920.0,1.16429478]
[1749331262698,0.02912346,105930.0,105920.0,1.16429478]
[1749331262908,0.03856321,105930.0,105920.0,1.16429478]
[1749331263109,0.02912346,105930.0,105920.0,1.16429478]
[1749331263325,0.03856312,105930.0,105920.0,1.16429478]
[1749331264620,0.04800295,105930.0,105920.0,1.16429478]
[1749331264819,0.03856306,105930.0,105920.0,1.16429478]
[1749331265028,0.03856301,105930.0,105920.0,1.16429478]
[1749331265456,0.02086905,105930.0,105920.0,1.16429478]
[1749331265667,0.03856302,105930.0,105920.0,1.16429478]
[1749331266303,0.03856302,105930.0,105920.0,1.14909478]
[1749331266859,0.038563,105930.0,105920.0,1.14909478]
[1749331267237,0.03856298,105930.0,105920.0,1.14909478]
[1749331268078,0.04800273,105930.0,105920.0,1.14909478]
[1749331269438,0.04800273,105930.0,105920.0,0.54796032]
[1749331269835,0.0303088,105930.0,105920.0,0.54796032]
[1749331270016,0.04800274,105930.0,105920.0,0.54796032]
[1749331270218,0.0303088,105930.0,105920.0,0.54796032]
[1749331270534,0.04800273,105930.0,105920.0,0.54796032]
[1749331271370,0.04800275,105930.0,105920.0,0.54796032]
[1749331272510,0.06569669,105930.0,105920.0,0.54796032]
[1749331272733,0.04681719,105930.0,105920.0,1.14909478]
[1749331272940,0.06569633,105930.0,105920.0,1.16549478]
[1749331273147,0.06569636,105930.0,105920.0,0.56436032]
[1749331273364,0.06569636,105930.0,105920.0,0.54796032]
[1749331274105,0.06569629,105930.0,105920.0,0.54796032]
[1749331274339,0.04800239,105930.0,105920.0,0.54796032]
[1749331274563,0.0656963,105930.0,105920.0,0.54796032]
[1749331274798,0.0656963,105930.0,105920.0,0.56326032]
[1749331275432,0.05744222,105930.0,105920.0,0.56326032]
[1749331275842,0.07513612,105930.0,105920.0,0.56326032]
[1749331276620,0.08457604,105930.0,105920.0,0.56326032]
[1749331277790,0.08457604,105930.0,105920.0,0.54796032]
[1749331278173,0.07513612,105930.0,105920.0,0.54796032]
[1749331279324,0.0751361,105930.0,105920.0,0.54796032]
[1749331280394,0.06569627,105930.0,105920.0,0.54796032]
[1749331280605,0.07513619,105930.0,105920.0,0.54796032]
[1749331280790,0.07513623,105930.0,105920.0,0.54796032]
[1749331281404,0.05744231,105930.0,105920.0,0.54796032]
[1749331281633,0.07513628,105930.0,105920.0,0.54796032]
[1749331281854,0.07513628,105930.0,105920.0,0.56356032]
[1749331282263,0.07513629,105930.0,105920.0,0.56356032]
[1749331282915,0.0751362,105930.0,105920.0,0.54796032]
[1749331283116,0.07513632,105930.0,105920.0,0.54796032]
[1749331283540,0.07513632,105930.0,105920.0,0.5196202]
[1749331283709,0.07513632,105930.0,105920.0,0.54795939]
[1749331284304,0.07513633,105930.0,105920.0,0.54795939]
[1749331284516,0.07513644,105930.0,105920.0,0.54795939]
[1749331284721,0.08457639,105930.0,105920.0,0.087]
[1749331284938,0.08457639,105930.0,105920.0,0.27814968]
[1749331285142,0.08457639,105930.0,105920.0,0.27578968]
[1749331285349,0.06688214,105930.0,105920.0,0.27578968]
[1749331285554,0.08457639,105930.0,105920.0,0.29467104]
[1749331286035,0.08457666,105930.0,105920.0,0.58075104]
[1749331286262,0.08457664,105930.0,105920.0,0.58075104]
[1749331286707,0.08457664,105930.0,105920.0,0.59019159]
[1749331286908,0.08457673,105930.0,105920.0,0.60907331]
[1749331287111,0.07513672,105930.0,105920.0,0.60907331]
[1749331287919,0.08457675,105930.0,105920.0,0.60907331]
[1749331288321,0.08457676,105930.0,105920.0,0.60907331]
[1749331289820,0.08457674,105930.0,105920.0,0.60907331]
[1749331291633,0.08457662,105930.0,105920.0,0.60907331]
[1749331291795,0.08457656,105930.0,105920.0,0.60907331]
[1749331292674,0.08457654,105930.0,105920.0,0.60907331]
[1749331296043,0.08457651,105930.0,105920.0,0.60907331]
[1749331297721,0.0751365,105930.0,105920.0,0.60907331]
[1749331297953,0.08457647,105930.0,105920.0,0.60907331]
[1749331299720,0.08457644,105930.0,105920.0,0.60907331]
[1749331301201,0.08457642,105930.0,105920.0,0.60907331]
[1749331303638,0.08457643,105930.0,105920.0,0.60907331]
[1749331305375,0.08457646,105930.0,105920.0,0.60907331]
[1749331305818,0.07513645,105930.0,105920.0,0.60907331]
[1749331306023,0.08457646,105930.0,105920.0,0.60907331]
[1749331306440,0.08457648,105930.0,105920.0,0.60907331]
[1749331307309,0.08457649,105930.0,105920.0,0.60907331]
[1749331309808,0.08457665,105930.0,105920.0,0.60907331]
[1749331311649,0.08457667,105930.0,105920.0,0.60907331]
[1749331312089,0.06688223,105930.0,105920.0,0.60907331]
[1749331312306,0.08457667,105930.0,105920.0,0.60907331]
[1749331312960,0.07513667,105930.0,105920.0,0.60907331]
[1749331313168,0.08457668,105930.0,105920.0,0.60907331]
[1749331313604,0.06688223,105930.0,105920.0,0.60907331]
[1749331313817,0.08457679,105930.0,105920.0,0.60907331]
[1749331315062,0.06688223,105930.0,105920.0,0.60907331]
[1749331315279,0.08457689,105930.0,105920.0,0.60907331]
[1749331315759,0.0845769,105930.0,105920.0,0.60907331]
[1749331317408,0.06688223,105930.0,105920.0,0.60907331]
[1749331317624,0.08457692,105930.0,105920.0,0.60907331]
[1749331318569,0.0845771,105930.0,105920.0,0.60907331]
[1749331319240,0.08457711,105930.0,105920.0,0.60907331]
[1749331321339,0.08457708,105930.0,105920.0,0.60907331]
[1749331321540,0.05744222,105930.0,105920.0,0.60907331]
[1749331321744,0.07513708,105930.0,105920.0,0.60907331]
[1749331322251,0.08457709,105930.0,105920.0,0.60907331]
[1749331322450,0.06688223,105930.0,105920.0,0.60907331]
[1749331322667,0.08457709,105930.0,105920.0,0.60907331]
[1749331323383,0.08457708,105930.0,105920.0,0.60907331]
[1749331323559,0.08457709,105930.0,105920.0,0.60907331]
[1749331323773,0.08457708,105930.0,105920.0,0.60907331]
[1749331325443,0.07513706,105930.0,105920.0,0.60907331]
[1749331325651,0.08457707,105930.0,105920.0,0.60907331]
[1749331325868,0.07513709,105930.0,105920.0,0.60907331]
[1749331326106,0.0845771,105930.0,105920.0,0.60907331]
[1749331326928,0.06688223,105930.0,105920.0,0.60907331]
[1749331327162,0.08457712,105930.0,105920.0,0.60907331]
[1749331327528,0.08457707,105930.0,105920.0,0.60907331]
[1749331328326,0.08457709,105930.0,105920.0,0.60907331]
[1749331328545,0.08457708,105930.0,105920.0,0.60907331]
[1749331328744,0.08457709,105930.0,105920.0,0.60907331]
[1749331329099,0.07513708,105930.0,105920.0,0.60907331]
[1749331329312,0.08457709,105930.0,105920.0,0.60907331]
[1749331329966,0.08457685,105930.0,105920.0,0.60907331]
[1749331331521,0.07513684,105930.0,105920.0,0.60907331]
[1749331331742,0.06688223,105930.0,105920.0,0.60907331]
[1749331331971,0.08457662,105930.0,105920.0,0.60907331]
[1749331332215,0.08457662,105930.0,105920.0,0.62497331]
[1749331333084,0.07513661,105930.0,105920.0,1.22610777]
[1749331333299,0.06569678,105930.0,105920.0,1.21020777]
[1749331333754,0.0751367,105930.0,105920.0,1.21020777]
[1749331333959,0.07513661,105930.0,105920.0,1.21020777]
[1749331334614,0.06569678,105930.0,105920.0,1.21020777]
[1749331335061,0.06569602,105930.0,105920.0,1.21020777]
[1749331336360,0.06569626,105930.0,105920.0,1.21020777]
[1749331336579,0.06569625,105930.0,105920.0,1.21020777]
[1749331337494,0.06569625,105930.0,105920.0,0.60907331]
[1749331337917,0.06569622,105930.0,105920.0,0.60907331]
[1749331338574,0.06569623,105930.0,105920.0,0.60907331]
[1749331338812,0.05625657,105930.0,105920.0,0.60907331]
[1749331339036,0.06569632,105930.0,105920.0,0.60907331]
[1749331339261,0.06569632,105930.0,105920.0,1.21020777]
[1749331339682,0.06569623,105930.0,105920.0,1.21020777]
[1749331339888,0.05625657,105930.0,105920.0,1.21020777]
[1749331340108,0.06569614,105930.0,105920.0,1.21020777]
[1749331340520,0.0373777,105930.0,105920.0,1.21020777]
[1749331340725,0.0373777,105930.0,105920.0,1.24260777]
[1749331340941,0.01968386,105930.0,105920.0,1.24260777]
[1749331341147,0.0373778,105930.0,105920.0,1.24260777]
[1749331341392,0.01968386,105930.0,105920.0,1.24260777]
[1749331341602,0.03737776,105930.0,105920.0,1.24260777]
[1749331341807,0.03737775,105930.0,105920.0,1.24260777]
[1749331342849,0.03737683,105930.0,105920.0,1.24260777]
[1749331343262,0.03737681,105930.0,105920.0,1.24260777]
[1749331343881,0.0468162,105930.0,105920.0,1.24260777]
[1749331344511,0.04681571,105930.0,105920.0,1.24260777]
[1749331344668,0.04681576,105930.0,105920.0,1.27094354]
[1749331345487,0.04681545,105930.0,105920.0,1.27094354]
[1749331345869,0.05625493,105930.0,105920.0,1.27094354]
[1749331346064,0.05625493,105930.0,105920.0,1.24260777]
[1749331346279,0.05625492,105930.0,105920.0,1.24260777]
[1749331346485,0.05625491,105930.0,105920.0,1.24260777]
[1749331348462,0.0562547,105930.0,105920.0,1.24260777]
[1749331348599,0.03856273,105930.0,105920.0,1.24260777]
[1749331348812,0.0562547,105930.0,105920.0,1.24260777]
[1749331349057,0.05625472,105930.0,105920.0,1.24260777]
[1749331350019,0.03856273,105930.0,105920.0,1.24260777]
[1749331350472,0.0562546,105930.0,105920.0,1.24260777]
[1749331350674,0.03856273,105930.0,105920.0,1.24260777]
[1749331351034,0.05625461,105930.0,105920.0,1.24260777]
[1749331351237,0.06569427,105930.0,105920.0,1.24260777]
[1749331351484,0.06569422,105930.0,105920.0,1.24260777]
[1749331352117,0.06569413,105930.0,105920.0,1.24260777]
[1749331352323,0.06569418,105930.0,105920.0,1.24260777]
[1749331353765,0.06569404,105930.0,105920.0,1.24260777]
[1749331353918,0.06569403,105930.0,105920.0,1.24260777]
[1749331354451,0.0480023,105930.0,105920.0,1.24260777]
[1749331354769,0.03737566,105930.0,105920.0,1.22630777]
[1749331354969,0.04681523,105930.0,105920.0,1.22630777]
[1749331355707,0.03856309,105930.0,105920.0,1.22630777]
[1749331355913,0.0562549,105930.0,105920.0,1.22630777]
[1749331356137,0.03856309,105930.0,105920.0,1.22630777]
[1749331356352,0.0562549,105930.0,105920.0,1.22630777]
[1749331357516,0.04681524,105930.0,105920.0,1.22630777]
[1749331358464,0.04681535,105930.0,105920.0,1.22630777]
[1749331359368,0.02912343,105930.0,105920.0,1.22630777]
[1749331359795,0.04681539,105930.0,105920.0,1.22630777]
[1749331360937,0.04681552,105930.0,105920.0,1.22630777]
[1749331361353,0.02912343,105930.0,105920.0,1.22630777]
[1749331361785,0.04681554,105930.0,105920.0,1.22630777]
[1749331362928,0.04681571,105930.0,105920.0,1.22630777]
[1749331363165,0.02912343,105930.0,105920.0,1.22630777]
[1749331363377,0.04681571,105930.0,105920.0,1.22630777]
[1749331364535,0.04681592,105930.0,105920.0,1.22630777]
[1749331364964,0.02912343,105930.0,105920.0,1.22630777]
[1749331365144,0.04681592,105930.0,105920.0,1.22630777]
[1749331365543,0.05625575,105930.0,105920.0,1.22630777]
[1749331365745,0.046816,105930.0,105920.0,1.22630777]
[1749331365980,0.046816,105930.0,105920.0,1.21020777]
[1749331366711,0.0468165,105930.0,105920.0,1.21020777]
[1749331368074,0.02912343,105930.0,105920.0,1.21020777]
[1749331368283,0.04681702,105930.0,105920.0,1.21020777]
[1749331368502,0.02912343,105930.0,105920.0,1.21020777]
[1749331368706,0.04681702,105930.0,105920.0,1.21020777]
[1749331369091,0.05625677,105930.0,105920.0,1.21020777]
[1749331369491,0.04681706,105930.0,105920.0,1.21020777]
[1749331369852,0.03856309,105930.0,105920.0,1.21020777]
[1749331370486,0.05625742,105930.0,105920.0,1.21020777]
[1749331371305,0.05625743,105930.0,105920.0,1.21020777]
[1749331372943,0.0562574,105930.0,105920.0,1.21020777]
[1749331374555,0.05625741,105930.0,105920.0,1.21020777]
[1749331375206,0.05625745,105930.0,105920.0,1.21020777]
[1749331377528,0.05625746,105930.0,105920.0,1.21020777]
[1749331378568,0.03856309,105930.0,105920.0,1.21020777]
[1749331378771,0.05625749,105930.0,105920.0,1.21020777]
[1749331379193,0.03856309,105930.0,105920.0,1.21020777]
[1749331379404,0.02912343,105930.0,105920.0,1.21020777]
[1749331379813,0.04681782,105930.0,105920.0,1.21020777]
[1749331380670,0.04681773,105930.0,105920.0,1.21020777]
[1749331381442,0.04681823,105930.0,105920.0,1.21020777]
[1749331381654,0.04681827,105930.0,105920.0,1.21020777]
[1749331383016,0.04681819,105930.0,105920.0,1.21020777]
[1749331383427,0.0468183,105930.0,105920.0,1.21020777]
[1749331384002,0.04681899,105930.0,105920.0,1.21020777]
[1749331384547,0.0468191,105930.0,105920.0,1.21020777]
[1749331384753,0.02912325,105930.0,105920.0,1.21020777]
[1749331384939,0.01968386,105930.0,105920.0,1.21020777]
[1749331385145,0.02912325,105930.0,105920.0,1.21020777]
[1749331385385,0.0468191,105930.0,105920.0,1.21020777]
[1749331386351,0.04681962,105930.0,105920.0,1.21020777]
[1749331386552,0.03738023,105930.0,105920.0,1.21020777]
[1749331386752,0.03738262,105930.0,105920.0,1.26253544]
[1749331386960,0.03738289,105930.0,105920.0,1.29313544]
[1749331387157,0.03738449,105930.0,105920.0,1.29313544]
[1749331388233,0.03738077,105930.0,105920.0,1.29313544]
[1749331388437,0.03738085,105930.0,105920.0,1.29313544]
[1749331388997,0.03738085,105930.0,105920.0,1.8942699]
[1749331389394,0.03737918,105930.0,105920.0,1.29313544]
[1749331390861,0.03737898,105930.0,105920.0,1.29313544]
[1749331391581,0.01968386,105930.0,105920.0,1.29313544]
[1749331391790,0.03737799,105930.0,105920.0,1.29313544]
[1749331392101,0.01968386,105930.0,105920.0,1.29313544]
[1749331392305,0.03737707,105930.0,105920.0,1.29313544]
[1749331392726,0.01968386,105930.0,105920.0,1.29313544]
[1749331392934,0.03737713,105930.0,105920.0,1.29313544]
[1749331393356,0.01968386,105930.0,105920.0,1.29313544]
[1749331393988,0.03737758,105930.0,105920.0,1.29313544]
[1749331396283,0.01968386,105930.0,105920.0,1.29313544]
[1749331396526,0.03737736,105930.0,105920.0,1.29313544]
[1749331397173,0.03737736,105930.0,105920.0,1.2921394]
[1749331397385,0.03737672,105930.0,105920.0,1.2921394]
[1749331397597,0.03737673,105930.0,105920.0,1.2921394]
[1749331397816,0.03737672,105930.0,105920.0,1.2921394]
[1749331398024,0.01968277,105930.0,105920.0,1.2921394]
[1749331398238,0.00198991,105930.0,105920.0,1.2921394]
[1749331398448,0.01968278,105930.0,105920.0,1.2921394]
[1749331398628,0.01968246,105930.0,105920.0,1.2921394]
[1749331399066,0.00198991,105930.0,105920.0,1.2921394]
[1749331399285,0.01968235,105930.0,105920.0,1.2921394]
[1749331399514,0.01968235,105930.0,105920.0,1.89327386]
[1749331401181,0.01968229,105930.0,105920.0,1.98967334]
[1749331401640,0.00198991,105930.0,105920.0,1.98967334]
[1749331405801,0.00198991,105930.0,105920.0,2.04635179]
[1749331408440,0.00198991,105930.0,105920.0,2.03722656]
[1749331412947,0.00198991,105930.0,105920.0,2.06559056]
[1749331416002,0.00198991,105930.0,105920.0,3.00672502]
[1749331416226,0.00198991,105930.0,105920.0,3.02546647]
[1749331417072,4e-05,105940.0,105930.0,0.25002342]
[1749331417321,4e-05,105940.0,105930.0,1.60522314]
[1749331417934,4e-05,105940.0,105930.0,1.61976399]
[1749331418317,0.00204,105940.0,105930.0,1.64812499]
[1749331419792,0.00204,105940.0,105930.0,1.68579004]
[1749331419998,0.00204,105940.0,105930.0,1.64812499]
[1749331420667,0.00204,105940.0,105930.0,1.68578534]
[1749331430550,0.00204,105940.0,105930.0,1.64812499]
[1749331430773,0.00204,105940.0,105930.0,1.68579321]
[1749331430992,0.00204,105940.0,105930.0,1.64812499]
[1749331431412,0.00204,105940.0,105930.0,1.68579307]
[1749331431629,0.00204,105940.0,105930.0,1.64812499]
[1749331432623,0.00204,105940.0,105930.0,1.89296499]
[1749331437080,0.00204,105940.0,105930.0,1.29183053]
[1749331437535,0.00204,105940.0,105930.0,1.37867053]
[1749331438285,0.00204,105940.0,105930.0,1.97980499]
[1749331442896,0.00204,105940.0,105930.0,1.92327367]
[1749331445570,0.00204,105940.0,105930.0,1.99869357]
[1749331453348,0.00204,105940.0,105930.0,0.79642465]
[1749331453582,0.00204,105940.0,105930.0,1.99869357]
[1749331457931,0.00204,105940.0,105930.0,0.79642465]
[1749331458147,0.00204,105940.0,105930.0,1.99869357]
[1749331465679,0.00204,105940.0,105930.0,1.39755911]
[1749331467637,0.00204,105940.0,105930.0,1.99869357]
[1749331468297,0.00204,105940.0,105930.0,1.98209357]
[1749331468501,0.00204,105940.0,105930.0,1.96579357]
[1749331474714,0.00504,105940.0,105930.0,1.96579357]
[1749331478125,0.00504,105940.0,105930.0,1.93743257]
[1749331500546,0.00504,105940.0,105930.0,0.73516365]
[1749331500772,0.03604,105940.0,105930.0,0.6337828]
[1749331500999,0.15469967,105940.0,105930.0,0.56762077]
[1749331501211,0.21033799,105940.0,105930.0,0.84376343]
[1749331501422,0.15469958,105940.0,105930.0,0.84376343]
[1749331502085,0.13699272,105940.0,105930.0,0.84376343]
[1749331502512,0.15469655,105940.0,105930.0,0.47140343]
[1749331502719,0.15469655,105940.0,105930.0,0.84376343]
[1749331503133,0.13699272,105940.0,105930.0,0.84376343]
[1749331503344,0.13690553,105940.0,105930.0,0.84376343]
[1749331504994,0.12746641,105940.0,105930.0,0.84376343]
[1749331505198,0.13690553,105940.0,105930.0,0.84376343]
[1749331506582,0.13690544,105940.0,105930.0,0.84376343]
[1749331509231,0.12746641,105940.0,105930.0,0.84376343]
[1749331513906,0.11802721,105940.0,105930.0,0.84376343]
[1749331514046,0.13690483,105940.0,105930.0,0.84376343]
[1749331515874,0.13690474,105940.0,105930.0,0.84376343]
[1749331518611,0.12746589,105940.0,105930.0,0.84376343]
[1749331518801,0.13690474,105940.0,105930.0,0.84376343]
[1749331521603,0.12746589,105940.0,105930.0,0.84376343]
[1749331521804,0.13690474,105940.0,105930.0,0.84376343]
[1749331525740,0.12746589,105940.0,105930.0,0.84376343]
[1749331525946,0.13690474,105940.0,105930.0,0.84376343]
[1749331526618,0.13690474,105940.0,105930.0,0.59892343]
[1749331529237,0.12746589,105940.0,105930.0,0.59892343]
[1749331529438,0.13690474,105940.0,105930.0,0.59892343]
[1749331530904,0.15458082,105940.0,105930.0,0.59892343]
[1749331531347,0.13690474,105940.0,105930.0,0.59892343]
[1749331531556,0.15461084,105940.0,105930.0,0.59892343]
[1749331532799,0.15461086,105940.0,105930.0,0.59892343]